bitfinex-derivatives/quotes_ETHF0:USTF0_20220106
["timestamp","ask_amount","ask_price","bid_price","bid_amount"]
[1641453748857,2.82869,3459.2,3459.0,0.92763973]
[1641453749457,1.1043,3459.1,3459.0,0.92763973]
[1641453749657,5.72978,3459.1,3459.0,0.92763973]
[1641453750057,5.72978,3459.1,3458.8,0.92763973]
[1641453750257,5.1043,3458.9,3458.8,0.92763973]
[1641453750459,4.0,3458.9,3458.8,0.92763973]
[1641453751059,5.1043,3458.9,3458.8,0.92763973]
[1641453751460,8.625814,3458.9,3458.7,0.92763973]
[1641453751861,8.625814,3458.9,3458.8,0.229991]
[1641453752059,8.625814,3458.9,3458.7,0.92763973]
[1641453752261,9.730114,3458.9,3458.7,0.76163973]
[1641453752662,2.00479,3458.8,3458.7,0.76163973]
[1641453753162,2.00479,3458.8,3458.5,1.24046028]
[1641453753362,2.00479,3458.8,3458.4,1.24046028]
[1641453754162,2.00479,3458.8,3458.4,0.61211233]
[1641453754863,2.00479,3458.8,3458.7,0.3957]
[1641453755862,2.00479,3459.2,3458.7,0.758085]
[1641453756066,2.00479,3459.2,3459.1,0.3957]
[1641453756464,2.00479,3459.2,3459.1,0.528094]
[1641453756862,2.00479,3459.2,3459.1,0.758085]
[1641453757266,0.4304,3459.4,3459.1,0.758085]
[1641453757469,0.4304,3459.4,3459.3,0.3957]
[1641453757667,0.4304,3459.4,3459.3,1.505085]
[1641453758967,2.00479,3459.8,3459.3,1.505085]
[1641453759169,2.00479,3459.8,3459.3,0.747]
[1641453759566,2.00479,3459.8,3459.1,0.3957]
[1641453759766,2.00479,3459.8,3459.2,0.132394]
[1641453759967,2.00479,3459.8,3459.5,0.3957]
[1641453760169,4.625012,3459.7,3459.5,0.3957]
[1641453760567,4.625012,3459.7,3459.2,0.132394]
[1641453760769,2.00479,3459.8,3459.2,0.132394]
[1641453760970,2.00479,3459.8,3459.2,1.061694]
[1641453761370,2.00479,3459.8,3459.2,0.665994]
[1641453761569,2.00479,3459.8,3459.7,0.3957]
[1641453761771,2.00479,3459.8,3459.4,0.132394]
[1641453762776,2.00479,3459.8,3459.6,0.3957]
[1641453765577,4.0,3459.7,3459.0,2.00479]
[1641453765778,5.1453,3459.7,3459.2,0.3547]
[1641453765980,1.1453,3459.3,3458.6,2.00479]
[1641453766179,4.0,3459.0,3458.5,1.28839252]
[1641453766379,4.0,3459.0,3458.5,1.23369252]
[1641453766380,4.7007,3459.0,3458.5,1.23369252]
[1641453766578,2.00479,3458.8,3458.5,1.23369252]
[1641453766780,2.00479,3458.8,3458.5,1.28839252]
[1641453766980,4.626082,3458.7,3458.5,1.28839252]
[1641453767681,4.626082,3458.7,3458.5,0.0547]
[1641453768180,4.626082,3458.7,3458.0,3.23848252]
[1641453768381,4.626082,3458.7,3458.1,0.0547]
[1641453768881,4.626082,3458.7,3458.0,3.23848252]
[1641453769082,4.626082,3458.7,3458.3,0.0547]
[1641453769681,4.626082,3458.7,3458.0,2.00479]
[1641453769881,2.00479,3458.8,3458.4,0.0547]
[1641453770483,4.626149,3458.7,3458.4,0.0547]
[1641453771484,4.626149,3458.7,3458.5,0.229991]
[1641453771883,4.626149,3458.7,3458.6,0.0547]
[1641453772083,2.00479,3458.8,3458.6,0.0547]
[1641453772084,1.44596222,3460.1,3458.6,0.0547]
[1641453772282,32.0339,3459.9,3459.5,0.0547]
[1641453772484,8.73073091,3460.4,3459.6,0.229991]
[1641453772684,2.00479,3460.0,3459.6,0.229991]
[1641453773384,2.00479,3460.0,3459.5,0.496191]
[1641453773585,2.00479,3460.0,3459.5,0.135799]
[1641453773785,2.00479,3460.0,3459.7,0.0547]
[1641453773986,2.00479,3460.0,3459.7,0.0127]
[1641453774589,2.00479,3460.0,3459.3,0.8139]
[1641453774787,0.132394,3459.9,3459.3,0.946294]
[1641453775195,2.00479,3460.0,3459.3,0.946294]
[1641453775589,0.130107,3460.1,3459.3,0.946294]
[1641453776292,4.624678,3460.0,3459.3,0.946294]
[1641453776491,0.130107,3459.8,3459.3,0.946294]
[1641453776692,2.00479,3460.2,3459.4,2.00479]
[1641453776991,0.130107,3460.1,3459.5,0.132394]
[1641453777291,2.00479,3460.2,3459.5,0.132394]
[1641453777492,0.130107,3459.7,3459.5,0.073994]
[1641453777693,0.229991,3459.6,3459.4,1.572784]
[1641453777891,0.262501,3460.0,3459.4,1.522784]
[1641453778091,0.130107,3459.8,3459.4,1.097084]
[1641453778292,0.130107,3459.8,3459.4,0.833084]
[1641453779391,0.132394,3460.0,3459.4,0.833084]
[1641453779993,0.262501,3460.0,3459.4,0.833084]
[1641453780192,0.130107,3459.5,3459.4,0.833084]
[1641453781296,2.134897,3460.2,3459.4,0.833084]
[1641453781893,4.756938,3460.1,3459.4,0.397084]
[1641453783298,4.756938,3460.1,3458.9,1.369893]
[1641453783499,4.756938,3460.1,3458.8,2.93056261]
[1641453783698,4.887045,3460.1,3459.0,0.80477261]
[1641453784198,4.756938,3460.1,3459.0,0.80477261]
[1641453784599,0.130107,3459.9,3459.0,0.80477261]
[1641453785299,0.130107,3460.0,3459.0,0.80477261]
[1641453785799,4.139687,3460.2,3459.0,0.80477261]
[1641453786002,4.624945,3459.9,3458.9,2.05755469]
[1641453786202,4.139687,3460.2,3458.9,1.44561523]
[1641453786203,4.624812,3460.1,3458.9,1.44561523]
[1641453786402,0.130107,3459.7,3458.8,2.00479]
[1641453786803,4.00958,3460.2,3458.8,2.00479]
[1641453787003,4.00958,3460.2,3459.0,0.61194613]
[1641453787505,0.130107,3459.3,3459.0,0.61194613]
[1641453787906,0.130107,3459.3,3458.9,2.05755718]
[1641453788906,4.00958,3460.2,3458.9,1.44561105]
[1641453789107,0.130107,3460.1,3458.9,1.44561105]
[1641453789509,0.130107,3459.9,3458.9,1.44561105]
[1641453789910,4.625079,3459.8,3458.9,1.44561105]
[1641453790913,4.0,3459.7,3458.9,1.44561105]
[1641453791117,0.132394,3459.6,3458.9,1.44561105]
[1641453791917,0.130107,3459.0,3458.9,1.44561105]
[1641453792816,0.132394,3459.1,3458.8,2.00479]
[1641453793316,0.130107,3459.5,3458.8,2.00479]
[1641453794218,0.262501,3459.5,3458.8,2.00479]
[1641453794417,0.132394,3459.5,3458.8,2.00479]
[1641453794619,0.130107,3459.3,3458.8,2.00479]
[1641453797020,0.132394,3459.3,3458.8,2.00479]
[1641453797821,0.130107,3459.1,3458.8,2.00479]
[1641453798121,0.132394,3459.3,3458.8,2.00479]
[1641453800125,2.00479,3459.5,3458.9,0.61197329]
[1641453800725,2.00479,3459.5,3459.0,1.44555881]
[1641453800924,2.134897,3459.5,3459.0,1.44555881]
[1641453801624,2.00479,3459.5,3459.0,1.44555881]
[1641453805231,2.00479,3459.5,3459.0,2.37499738]
[1641453806831,0.130107,3459.4,3459.0,2.37499738]
[1641453807333,2.00479,3459.5,3459.0,2.37499738]
[1641453808033,4.0,3460.1,3459.4,1.369893]
[1641453808234,4.0,3460.1,3460.0,1.44512012]
[1641453808733,3.26373091,3461.2,3460.0,1.44512012]
[1641453808933,31.705,3460.9,3460.0,1.44512012]
[1641453809136,0.130107,3461.1,3460.2,1.369893]
[1641453809137,2.00479,3460.8,3460.2,1.369893]
[1641453809333,2.00479,3460.8,3460.2,0.6752]
[1641453810133,2.137184,3460.8,3460.2,0.6752]
[1641453811134,0.130107,3460.4,3460.2,0.6752]
[1641453811435,2.137184,3460.8,3460.2,0.6752]
[1641453811738,0.130107,3460.6,3460.2,0.6752]
[1641453812140,2.00479,3460.8,3460.5,1.44490714]
[1641453812336,2.00479,3461.1,3460.7,1.369893]
[1641453812736,9e-05,3461.1,3461.0,2.8145893]
[1641453812935,3.26373091,3461.9,3461.0,3.3680893]
[1641453813136,3.26373091,3461.9,3461.8,4.00958]
[1641453813336,3.26373091,3461.9,3461.8,4.83958]
[1641453813535,4.07966364,3462.2,3461.8,6.28387777]
[1641453813735,4.07966364,3462.2,3462.0,1.369893]
[1641453814137,4.07966364,3462.2,3461.8,6.28387777]
[1641453814536,4.44903542,3462.4,3461.9,1.369893]
[1641453814736,3.25191771,3462.8,3461.9,1.369893]
[1641453814936,3.25191771,3462.8,3461.8,6.28387777]
[1641453815138,0.130107,3462.5,3461.8,4.27908777]
[1641453815538,0.130107,3462.1,3461.8,4.27908777]
[1641453815938,3.25191771,3462.8,3461.8,4.27908777]
[1641453816137,4.51866364,3463.1,3461.8,4.27908777]
[1641453816338,0.130107,3463.0,3461.9,1.54099412]
[1641453816539,0.439,3463.1,3461.9,1.54099412]
[1641453816742,0.130107,3463.0,3461.9,1.54099412]
[1641453817139,0.130107,3463.2,3462.7,2.00479]
[1641453817339,0.130107,3463.2,3462.7,2.86009]
[1641453817539,0.130107,3463.0,3462.7,2.86009]
[1641453817740,0.130107,3462.8,3462.7,2.86009]
[1641453817941,2.4124937,3463.3,3462.7,2.86009]
[1641453818343,0.130107,3463.0,3462.7,2.86009]
[1641453818541,0.130107,3462.8,3462.7,2.86009]
[1641453820242,0.132394,3463.2,3462.7,2.86009]
[1641453820441,0.130107,3462.8,3462.7,2.86009]
[1641453820641,0.130107,3462.8,3462.7,2.00479]
[1641453821241,0.360098,3462.8,3462.7,2.00479]
[1641453821641,0.130107,3462.8,3462.7,1.71509]
[1641453821842,0.696607,3462.8,3462.7,1.71509]
[1641453822042,0.696607,3462.8,3462.1,0.92943857]
[1641453822247,1.632394,3462.7,3462.1,0.92943857]
[1641453822443,0.132394,3462.7,3462.1,0.92943857]
[1641453822643,0.130107,3462.5,3462.0,0.92943857]
[1641453823343,0.132394,3462.4,3462.0,0.92943857]
[1641453823643,0.130107,3462.2,3462.0,0.92943857]
[1641453823843,0.132394,3462.1,3462.0,0.92943857]
[1641453824044,0.132394,3462.1,3461.9,1.54101952]
[1641453824045,0.913594,3462.1,3461.9,1.54101952]
[1641453824443,0.130107,3462.0,3461.9,1.54101952]
[1641453824645,0.360098,3462.0,3461.9,1.54101952]
[1641453824845,0.360098,3462.0,3461.3,1.50426787]
[1641453825044,3.634897,3461.4,3461.2,0.19866787]
[1641453825244,2.763397,3461.4,3460.9,1.45645829]
[1641453825645,0.130107,3461.0,3460.9,1.45645829]
[1641453825842,0.360098,3461.0,3460.9,1.45645829]
[1641453826645,0.130107,3461.2,3460.9,1.45645829]
[1641453826847,2.00479,3461.4,3460.9,1.45645829]
[1641453827045,0.130107,3461.0,3460.4,3.09196113]
[1641453827247,2.00479,3461.8,3460.8,1.44480693]
[1641453827449,0.130107,3461.2,3460.4,0.8241]
[1641453827648,2.00479,3461.8,3460.4,0.8241]
[1641453827847,0.130107,3461.5,3461.0,1.44473387]
[1641453828047,0.132394,3461.7,3460.4,0.8241]
[1641453828449,0.132394,3461.7,3461.1,1.44467126]
[1641453829047,0.130107,3461.2,3461.1,1.44467126]
[1641453829348,0.132394,3461.5,3461.0,2.00479]
[1641453830949,0.130107,3461.1,3461.0,2.00479]
[1641453831150,0.132394,3461.5,3461.0,2.00479]
[1641453832248,0.132394,3461.5,3461.0,2.77319]
[1641453832450,0.132394,3461.5,3461.0,2.62169]
[1641453834052,2.00479,3461.8,3461.0,2.62169]
[1641453834251,0.130107,3462.3,3461.7,1.44442294]
[1641453834452,0.130107,3462.0,3461.7,0.7486]
[1641453834651,0.4367,3462.4,3461.7,2.1930292]
[1641453834852,0.130107,3462.2,3461.7,2.1930292]
[1641453835051,0.132394,3462.3,3461.7,2.1930292]
[1641453835255,0.130107,3461.8,3461.7,4.1978192]
[1641453835453,0.132394,3462.3,3461.7,4.1978192]
[1641453835656,0.130107,3462.0,3461.7,4.1978192]
[1641453835853,0.130107,3462.2,3461.7,4.1978192]
[1641453837255,0.130107,3461.8,3461.7,2.75339]
[1641453839156,0.360098,3461.8,3461.7,2.75339]
[1641453839756,0.132394,3462.0,3461.8,0.639902]
[1641453840158,0.076608,3461.9,3461.8,0.639902]
[1641453844861,0.132394,3462.0,3461.9,0.923392]
[1641453845061,4.0,3462.2,3461.9,0.923392]
[1641453845762,0.132394,3462.3,3461.9,1.923392]
[1641453845964,0.4367,3462.4,3462.0,0.229991]
[1641453846564,4.621339,3462.3,3462.0,0.229991]
[1641453846965,4.621339,3462.3,3461.9,1.923392]
[1641453847366,0.4367,3462.4,3461.9,1.923392]
[1641453849766,2.137184,3462.5,3462.4,0.5633]
[1641453849967,6.137184,3462.5,3462.4,0.5633]
[1641453850169,6.567784,3462.5,3462.4,0.5633]
[1641453850369,11.188789,3462.5,3462.4,0.5633]
[1641453850770,11.188789,3462.5,3461.9,1.923392]
[1641453850967,1.5,3462.2,3461.9,1.923392]
[1641453851469,0.132394,3462.1,3462.0,0.229991]
[1641453852675,0.132394,3462.4,3462.0,0.229991]
[1641453852876,0.132394,3462.4,3461.9,1.923392]
[1641453853276,4.621405,3462.3,3461.9,1.923392]
[1641453853882,0.132394,3462.2,3461.9,1.923392]
[1641453854279,6.43539,3462.5,3462.0,0.229991]
[1641453854480,6.43539,3462.5,3462.0,0.773891]
[1641453854481,2.43539,3462.5,3462.0,0.773891]
[1641453854680,2.43539,3462.5,3462.1,0.914]
[1641453858084,2.00479,3462.5,3462.1,0.914]
[1641453861188,2.00479,3462.5,3462.0,0.5439]
[1641453861390,2.42530649,3462.8,3462.3,1.44415802]
[1641453861590,2.42530649,3462.8,3462.7,2.00479]
[1641453861789,2.42530649,3462.8,3462.7,2.234781]
[1641453862189,2.42530649,3463.1,3462.7,2.234781]
[1641453863692,3.26071048,3463.3,3462.7,2.234781]
[1641453863891,3.92530649,3463.4,3462.6,0.92304743]
[1641453863892,1.5,3462.9,3462.6,0.92304743]
[1641453864093,4.0,3462.8,3462.6,0.92304743]
[1641453864291,1.5,3463.2,3462.6,1.15303843]
[1641453864492,1.632394,3463.2,3462.6,1.15303843]
[1641453864991,2.42530649,3463.0,3462.6,0.229991]
[1641453865591,4.43009649,3463.0,3462.6,0.229991]
[1641453870901,2.00479,3463.0,3462.5,3.477294]
[1641453871097,0.132394,3462.9,3462.5,3.477294]
[1641453871699,1.5,3462.6,3462.5,3.477294]
[1641453871900,1.5,3462.6,3461.5,1.44450014]
[1641453871901,0.132394,3462.5,3461.5,1.44450014]
[1641453872200,4.0,3462.1,3461.2,0.92304743]
[1641453872500,0.842,3462.1,3461.2,0.92304743]
[1641453872902,0.842,3462.1,3461.1,1.44466917]
[1641453873101,0.842,3462.1,3460.6,0.92304743]
[1641453873701,0.842,3462.1,3461.5,2.00479]
[1641453874901,2.00479,3462.3,3461.5,2.00479]
[1641453875102,2.00479,3462.3,3461.8,1.4443687]
[1641453875302,2.00479,3462.3,3461.8,2.1262687]
[1641453876402,2.00479,3462.3,3461.8,1.4443687]
[1641453877404,2.00479,3462.3,3461.5,3.44927553]
[1641453879108,2.74709,3462.3,3461.5,3.44927553]
[1641453882816,2.00479,3462.3,3461.5,3.44927553]
[1641453884912,4.0,3462.1,3461.5,3.44927553]
[1641453885115,4.0,3462.1,3461.5,2.00479]
[1641453885412,4.0,3462.1,3461.1,2.00479]
[1641453885612,4.0,3461.5,3460.9,0.92304743]
[1641453885813,2.00479,3461.3,3460.9,0.92304743]
[1641453886015,2.00479,3461.3,3460.9,1.54006319]
[1641453886217,2.00479,3461.3,3461.2,1.23103962]
[1641453886414,2.137184,3461.3,3461.2,1.23103962]
[1641453887713,2.137184,3461.3,3460.9,1.23103962]
[1641453889015,2.137184,3461.3,3460.7,2.98488682]
[1641453889016,2.137184,3461.3,3460.8,1.23103962]
[1641453890319,2.137184,3461.3,3460.8,1.84264865]
[1641453890518,2.137184,3461.3,3460.9,1.23103962]
[1641453891119,2.00479,3461.3,3460.9,1.77013962]
[1641453891323,2.00479,3461.6,3460.9,1.77013962]
[1641453891919,2.00479,3461.6,3460.9,3.77492962]
[1641453892518,2.137184,3461.6,3460.9,3.77492962]
[1641453892720,2.137184,3461.6,3461.1,1.23103962]
[1641453893520,2.00479,3461.6,3461.1,1.23103962]
[1641453895233,2.137184,3461.6,3461.1,1.23103962]
[1641453895434,2.137184,3461.6,3461.0,1.84264865]
[1641453896232,4.62254,3461.5,3461.0,1.84264865]
[1641453896634,4.62254,3461.5,3461.0,0.61160903]
[1641453896832,2.137184,3461.6,3461.0,0.61160903]
[1641453897034,2.137184,3461.6,3461.0,1.39890903]
[1641453897233,2.00479,3461.6,3461.0,1.39890903]
[1641453897437,2.00479,3461.6,3461.0,0.7873]
[1641453897834,2.00479,3461.6,3461.2,1.44463578]
[1641453898034,2.00479,3461.6,3461.0,0.7873]
[1641453898235,2.00479,3461.6,3461.3,1.44457943]
[1641453898436,2.00479,3461.6,3461.4,0.229991]
[1641453898635,2.00479,3461.6,3461.3,1.44457943]
[1641453899034,2.00479,3461.6,3461.0,2.23187943]
[1641453899035,2.00479,3461.6,3461.0,0.7873]
[1641453899237,2.00479,3462.0,3461.0,0.7873]
[1641453899836,2.00479,3462.0,3461.4,2.00479]
[1641453900337,2.137184,3462.0,3461.4,2.00479]
[1641453902342,2.00479,3462.0,3461.4,2.00479]
[1641453904039,2.137184,3462.0,3461.4,2.00479]
[1641453908443,2.00479,3462.0,3461.4,2.00479]
[1641453909745,0.132394,3461.9,3461.4,2.00479]
[1641453910446,4.132394,3461.9,3461.4,2.00479]
[1641453911245,0.132394,3461.9,3461.4,2.00479]
[1641453913249,2.00479,3462.0,3461.4,2.00479]
[1641453914851,3.637184,3462.0,3461.4,2.00479]
[1641453915552,4.0,3461.9,3461.4,2.00479]
[1641453915752,4.132394,3461.9,3461.4,2.00479]
[1641453916455,0.132394,3461.9,3461.4,2.00479]
[1641453916656,2.00479,3462.0,3461.4,2.00479]
[1641453916857,2.00479,3462.0,3461.7,1.44439582]
[1641453917059,2.00479,3462.0,3461.8,0.229991]
[1641453919056,2.00479,3462.0,3461.7,1.44439582]
[1641453919057,2.00479,3462.0,3461.9,0.229991]
[1641453919660,2.00479,3462.0,3461.7,1.44439582]
[1641453920057,2.00479,3462.0,3461.8,0.229991]
[1641453921659,2.00479,3462.0,3461.7,1.44439582]
[1641453921860,2.00479,3462.0,3461.5,0.93407948]
[1641453922059,2.85399,3462.0,3461.5,0.93407948]
[1641453923262,0.132394,3461.9,3461.4,2.00479]
[1641453925166,2.85399,3462.0,3461.5,1.44450014]
[1641453925366,2.00479,3462.0,3461.5,1.44450014]
[1641453927667,2.00479,3462.0,3461.4,2.00479]
[1641453931182,2.137184,3462.0,3461.4,2.00479]
[1641453931571,2.137184,3462.0,3461.5,1.54552306]
[1641453935784,2.137184,3462.0,3461.5,0.93407948]
[1641453935984,2.137184,3462.0,3461.4,2.93886948]
[1641453936886,2.137184,3462.0,3461.5,1.5455379]
[1641453937585,2.00479,3462.0,3461.5,1.5455379]
[1641453939491,2.137184,3462.0,3461.5,1.5455379]
[1641453939992,2.00479,3462.0,3461.5,1.5455379]
[1641453941492,2.137184,3462.0,3461.5,0.93407948]
[1641453941694,2.137184,3462.0,3461.4,2.93886948]
[1641453942493,2.868084,3462.0,3461.4,2.93886948]
[1641453943793,2.868084,3462.0,3461.4,2.00479]
[1641453943994,4.0,3461.5,3461.3,0.93407948]
[1641453944292,4.0,3461.5,3460.8,1.54006319]
[1641453944293,8.259591,3461.4,3460.8,1.54006319]
[1641453944494,4.0,3461.1,3460.8,1.54006319]
[1641453944692,0.132394,3461.0,3460.8,1.54006319]
[1641453944892,4.755402,3461.0,3460.8,1.54006319]
[1641453945497,4.623008,3461.0,3460.8,1.54006319]
[1641453945696,0.132394,3460.9,3460.5,1.84807583]
[1641453945899,0.132394,3460.9,3460.4,2.00479]
[1641453946096,4.623342,3460.8,3460.4,2.00479]
[1641453947497,4.623475,3461.3,3460.4,2.00479]
[1641453947696,4.623475,3460.7,3460.4,2.00479]
[1641453947896,4.623475,3460.7,3460.5,0.229991]
[1641453948096,4.623141,3461.3,3460.5,0.229991]
[1641453948297,0.132394,3461.2,3460.5,0.229991]
[1641453948696,4.623141,3461.1,3460.5,0.84159464]
[1641453949498,4.623208,3461.3,3460.5,2.28648716]
[1641453949698,4.623208,3461.0,3460.6,0.61160364]
[1641453950102,0.132394,3461.1,3460.6,0.61160364]
[1641453950299,0.668794,3461.1,3460.6,0.61160364]
[1641453950499,4.623208,3460.9,3460.6,0.61160364]
[1641453950798,0.668794,3461.1,3460.6,0.61160364]
[1641453951002,4.623275,3460.8,3460.5,1.44489252]
[1641453951199,0.668794,3461.1,3460.5,1.44489252]
[1641453951200,4.623208,3461.0,3460.6,0.229991]
[1641453951400,0.132394,3460.9,3460.5,1.44489252]
[1641453952199,2.44139,3461.4,3460.5,1.44489252]
[1641453952800,4.623008,3461.3,3460.5,1.44489252]
[1641453953001,0.132394,3461.2,3460.5,1.44489252]
[1641453953401,4.623141,3461.1,3460.5,1.44489252]
[1641453953801,0.132394,3461.0,3460.5,1.44489252]
[1641453954202,4.623275,3460.9,3460.5,1.44489252]
[1641453954902,0.132394,3460.8,3460.5,1.44489252]
[1641453956002,2.44139,3461.4,3460.6,0.229991]
[1641453956204,0.132394,3461.3,3460.6,1.103691]
[1641453956604,4.623008,3461.2,3460.6,1.103691]
[1641453956804,0.132394,3461.1,3460.6,1.103691]
[1641453957204,4.623141,3461.0,3460.6,0.8737]
[1641453960310,4.623141,3461.0,3460.7,0.61156668]
[1641453960709,4.755535,3461.0,3460.7,0.61156668]
[1641453961111,0.132394,3461.0,3460.7,0.61156668]
[1641453961320,4.623141,3460.9,3460.7,0.61156668]
[1641453961510,4.623141,3460.9,3460.7,0.84155768]
[1641453961713,4.623141,3460.9,3460.7,0.61156668]
[1641453962311,4.623141,3460.9,3460.8,0.61156668]
[1641453962512,4.623141,3460.9,3460.8,0.84155768]
[1641453962911,4.623141,3460.9,3460.8,0.61156668]
[1641453963314,4.623141,3460.9,3460.7,0.61156668]
[1641453963514,4.623141,3460.9,3460.7,0.84155768]
[1641453964315,4.623141,3460.9,3460.7,0.229991]
[1641453965915,3.623141,3460.9,3460.7,0.229991]
[1641453966315,2.44139,3461.4,3460.7,0.229991]
[1641453966919,4.622874,3461.3,3460.7,0.229991]
[1641453967517,0.132394,3461.2,3460.6,0.8737]
[1641453967717,0.132394,3461.2,3460.6,0.94212008]
[1641453967918,4.623074,3461.1,3460.6,0.94212008]
[1641453968718,4.623074,3461.1,3460.5,2.3870126]
[1641453970919,4.570674,3461.1,3460.5,2.3870126]
[1641453972320,4.570674,3461.1,3460.6,1.55369426]
[1641453973220,4.570674,3461.1,3460.6,0.94212008]
[1641453973420,4.570674,3461.1,3460.5,2.3870126]
[1641453975218,2.44139,3461.4,3460.5,2.3870126]
[1641453975419,2.44139,3461.4,3460.6,1.55369687]
[1641453975817,4.622941,3461.3,3460.6,1.55369687]
[1641453977419,0.132394,3461.2,3460.6,1.55369687]
[1641453977823,4.623074,3461.1,3460.6,1.55369687]
[1641453978023,0.132394,3461.2,3460.5,1.44489252]
[1641453978625,4.623141,3461.1,3460.5,1.44489252]
[1641453979027,0.132394,3461.0,3460.5,1.44489252]
[1641453981927,4.623275,3460.9,3460.5,1.44489252]
[1641453982126,0.132394,3460.8,3460.5,1.44489252]
[1641453982326,0.986494,3460.8,3460.5,1.44489252]
[1641453982725,0.986494,3460.8,3460.6,0.229991]
[1641453982927,0.986494,3460.8,3460.5,1.44489252]
[1641453984027,0.986494,3460.8,3460.6,0.229991]
[1641453984230,0.986494,3460.8,3460.5,1.44489252]
[1641453985029,0.8541,3460.8,3460.6,0.229991]
[1641453985730,0.8541,3460.8,3460.5,1.44489252]
[1641453985929,0.8541,3460.8,3460.6,0.229991]
[1641453986330,0.8541,3460.8,3460.5,1.44489252]
[1641453986932,0.8541,3460.8,3460.6,0.229991]
[1641453987332,0.8541,3460.8,3460.5,1.44489252]
[1641453987532,2.44139,3461.4,3460.5,1.44489252]
[1641453988132,4.623008,3461.3,3460.5,1.44489252]
[1641453988332,0.132394,3461.2,3460.5,1.44489252]
[1641453988632,4.623141,3461.1,3460.5,1.44489252]
[1641453988832,0.132394,3461.0,3460.5,1.44489252]
[1641453990233,4.623275,3460.9,3460.5,1.44489252]
[1641453990633,0.132394,3460.8,3460.5,1.44489252]
[1641453991034,2.44139,3461.4,3460.6,0.229991]
[1641453991239,0.132394,3461.3,3460.6,0.229991]
[1641453991637,4.623008,3461.2,3460.5,1.44489252]
[1641453991839,0.132394,3461.1,3460.5,1.44489252]
[1641453992139,4.623208,3461.0,3460.5,2.3870126]
[1641453994744,2.44139,3461.4,3460.5,2.3870126]
[1641453994945,2.44139,3461.4,3460.5,3.2065126]
[1641453995445,4.623008,3461.3,3460.5,3.2065126]
[1641453995846,4.623008,3461.3,3460.6,1.55368925]
[1641453996546,0.132394,3461.2,3460.6,1.55368925]
[1641453997746,2.44139,3461.4,3460.6,1.55368925]
[1641453998347,4.622941,3461.3,3460.6,1.55368925]
[1641453999046,0.132394,3461.2,3460.6,1.55368925]
[1641454000651,0.132394,3461.2,3461.1,0.94212008]
[1641454001849,2.44139,3461.4,3461.1,1.17211108]
[1641454002250,2.44139,3461.4,3461.1,0.94212008]
[1641454002449,4.622607,3461.3,3461.1,0.94212008]
[1641454004551,0.132394,3461.2,3461.1,0.94212008]
[1641454006252,0.132394,3461.2,3461.0,0.94212008]
[1641454007152,2.137184,3461.2,3461.0,0.94212008]
[1641454008651,0.132394,3461.2,3461.0,0.94212008]
[1641454009153,2.137184,3461.2,3461.1,0.229991]
[1641454009354,2.137184,3461.2,3461.0,0.94212008]
[1641454010859,1.5,3461.1,3460.7,1.25793916]
[1641454011055,5.5,3460.8,3460.2,1.84807583]
[1641454011256,2.00479,3460.3,3460.2,1.84807583]
[1641454011456,2.67079,3460.3,3460.2,1.59807583]
[1641454011656,7.427127,3460.3,3460.2,1.29807583]
[1641454012359,7.427127,3460.3,3460.1,1.29807583]
[1641454012558,4.0,3460.2,3460.1,1.29807583]
[1641454012961,8.624076,3460.2,3460.1,1.29807583]
[1641454013660,8.624076,3460.2,3460.0,1.4451243]
[1641454013960,0.132394,3460.1,3460.0,1.4451243]
[1641454014359,4.756604,3460.1,3460.0,1.4451243]
[1641454014960,4.756604,3460.1,3459.2,2.26081435]
[1641454015161,4.756604,3460.1,3459.2,0.81549998]
[1641454016866,4.756604,3460.1,3459.2,2.31549998]
[1641454017466,4.756604,3460.1,3459.2,1.5]
[1641454017866,4.756604,3460.1,3459.0,4.26579237]
[1641454018069,5.5,3459.9,3459.0,4.26579237]
[1641454018367,4.625012,3459.8,3459.0,2.82028998]
[1641454018565,0.132394,3459.7,3459.0,2.82028998]
[1641454018766,32.41267083,3459.4,3459.0,2.82028998]
[1641454018968,33.13097083,3459.4,3459.0,2.82028998]
[1641454019167,4.75774,3459.3,3459.0,2.82028998]
[1641454019569,4.75774,3459.3,3459.0,2.00479]
[1641454019968,4.625346,3459.3,3459.0,2.00479]
[1641454020369,2.00479,3459.8,3459.0,3.50479]
[1641454020570,2.00479,3459.8,3459.1,1.5]
[1641454020771,2.00479,3459.8,3459.3,1.4453645]
[1641454021170,2.137184,3459.8,3459.3,1.4453645]
[1641454021971,2.137184,3459.8,3459.0,3.58254739]
[1641454022172,4.624878,3459.7,3459.0,3.58254739]
[1641454022572,0.132394,3459.6,3459.3,1.57775739]
[1641454022773,0.132394,3459.6,3459.4,0.229991]
[1641454022971,0.132394,3459.6,3459.3,1.57775739]
[1641454023773,0.132394,3459.6,3459.4,0.229991]
[1641454024775,0.132394,3459.6,3459.0,3.58254739]
[1641454025576,4.44758,3460.3,3459.0,3.58254739]
[1641454025778,4.44758,3460.3,3459.0,4.43954739]
[1641454026278,4.624745,3460.2,3459.0,4.43954739]
[1641454026677,4.624745,3460.2,3459.2,1.57775739]
[1641454026878,4.624745,3460.2,3459.3,1.44537912]
[1641454027879,4.624745,3460.2,3459.3,3.02313651]
[1641454028078,8.624745,3460.2,3459.3,3.02313651]
[1641454028281,8.624745,3460.2,3459.3,1.57775739]
[1641454028480,4.624745,3460.2,3459.3,1.57775739]
[1641454029179,4.624745,3460.2,3459.1,1.57775739]
[1641454031281,6.124745,3460.2,3459.1,2.189553]
[1641454031481,6.124745,3460.2,3459.6,0.94596714]
[1641454031680,0.132394,3460.1,3459.6,0.94596714]
[1641454032083,4.624477,3460.0,3459.6,0.94596714]
[1641454032284,0.132394,3459.9,3459.6,0.94596714]
[1641454032685,4.624611,3459.8,3459.6,0.94596714]
[1641454032886,4.624611,3459.8,3459.0,2.00479]
[1641454033986,4.624611,3459.8,3459.0,2.95075714]